Cogmind - Beta 14 @@@ ROGUE MODE // 2024.09.06 @ 02:00:39 Player: Beef Result: Destroyed by E7-KF9(R) with Subdweller Laser Performance ------------- Evolutions (0) 0 Regions Visited (2) 400 Robots Destroyed (33) 165 Value Destroyed (615) 615 Prototype IDs (2) 40 Alien Tech Used (0) 0 Bonus (0) 0 TOTAL SCORE: 1220 Bonus ------- None Cogmind --------- Core Integrity 0/250 Matter 216/300 Energy 230/250 System Corruption 0% Temperature Cool (6) Movement Rolling (129) Ox2 Location -10/Subcaves Parts ------- > --- POWER (1) -------- Ion Engine > --- PROPULSION (2) --- Compact Wheel Subdweller Monowheel > --- UTILITY (2) ------ Huge Storage Unit Core Shielding > --- WEAPON (2) ------- Battle Rifle Subdweller Machine Gun > --- INVENTORY (25) --- Subdweller Power Source Subdweller Power Source Light Nuclear Core Light Treads Light Treads Makeshift Leg Wheel Wheel Wheel Subdweller Monowheel Improved Heat Sink Structural Scanner Subdweller Optics Hacking Suite Small Laser Subdweller Laser Assault Rifle Assault Rifle Light Assault Rifle Light Assault Rifle Barrage Gun Grenade Launcher Mining Laser Shrapnel Trap Peak State ------------ > --- POWER ------------ Ion Engine > --- PROPULSION ------- Compact Wheel Subdweller Monowheel > --- UTILITY ---------- Huge Storage Unit Structural Scanner > --- WEAPON ----------- Battle Rifle Subdweller Machine Gun > --- INVENTORY -------- Subdweller Power Source Subdweller Power Source Light Nuclear Core Light Treads Light Treads Makeshift Leg Wheel Wheel Wheel Subdweller Monowheel Improved Heat Sink Subdweller Optics Core Shielding Hacking Suite Small Laser Subdweller Laser Assault Rifle Assault Rifle Light Assault Rifle Light Assault Rifle Barrage Gun Grenade Launcher Mining Laser Shrapnel Trap [Rating: 14] Favorites ----------- Power Ion Engine Engine Ion Engine Propulsion Wheel Treads Light Treads Wheel Wheel Utility Huge Storage Unit Device Improved Terrain Scanner Storage Huge Storage Unit Protection Core Shielding Weapon Small Laser Energy Gun Small Laser Ballistic Gun Subdweller Machine Gun Launcher Grenade Launcher Special Weapon Mining Laser Build | -11 -10 -10 ------- Run | Yrd Mat Sub Slots Evolved . | . . . Power . | . . . Propulsion . | . . . Utility . | . . . Weapon . | . . . Parts Attached 47 | 8 17 22 Power 5 | 1 3 1 Engine 5 | 1 3 1 Core . | . . . Reactor . | . . . Propulsion 15 | 2 8 5 Treads 3 | 2 . 1 Leg . | . . . Wheel 12 | . 8 4 Hover . | . . . Flight . | . . . Utility 12 | 2 2 8 Device 4 | 1 . 3 Storage 2 | 1 1 . Processor . | . . . Hackware . | . . . Protection 6 | . 1 5 Artifact . | . . . Weapon 15 | 3 4 8 Energy Gun 6 | 2 2 2 Energy Cannon . | . . . Ballistic Gun 7 | 1 1 5 Ballistic Cannon . | . . . Launcher 1 | . . 1 Special Weapon 1 | . 1 . Impact Weapon . | . . . Slashing Weapon . | . . . Piercing Weapon . | . . . Special Melee Weapon . | . . . Unidentified Prototypes . | . . . Parts Lost 11 | . 4 7 Power 2 | . 1 1 Propulsion 5 | . 2 3 Utility 2 | . 1 1 Weapon 2 | . . 2 Highest Loss Streak 6 | . 1 6 To Critical Strikes . | . . . Average Slot Usage (%) 99 | . 99 97 Engine 14 | . 14 14 Treads 6 | . 9 . Wheel 21 | . 18 27 Device 5 | . 5 4 Storage 14 | . 14 14 Protection 8 | . 8 9 Energy Gun 19 | . 25 8 Ballistic Gun 7 | . 1 16 Peak Build Rating 14 | 9 11 14 Average Rating 10 | 5 9 11 On Entrance 6 | . 9 9 Naked Turns . | . . . Heaviest Build 93 | 12 90 93 Greatest Support 40 | 40 40 36 Greatest Overweight (x) 8 | . 8 8 Average Overweight (x) 2 | . 2 2 Largest Inventory Capacity 25 | 8 25 25 Average Capacity 20 | 7 19 25 Most Carried 24 | 6 20 24 Average Carried 14 | 3 13 20 Final Capacity 25 | 8 25 25 Final Carried 24 | 6 20 24 Class Distribution -------------------- 59% | Mutant 40% | Scavenger-Mutant Dominant Class ---------------- Scavenger-Mutant | -10/Materials Mutant | -10/Subcaves Resources | -11 -10 -10 ----------- Run | Yrd Mat Sub Matter Collected 715 | 280 210 225 Remotely . | . . . Salvage Created 1005 | 105 771 129 Parts 62 | 5 52 5 Haulers Intercepted . | . . . Recyclers Shooed 1 | . 1 . Parts Field Recycled . | . . . Retrieved Matter . | . . . Parts Self-Destructed . | . . . Prevented . | . . . Kills | -11 -10 -10 ------- Run | Yrd Mat Sub Combat Hostiles Destroyed 18 | . 15 3 Guns 17 | . 14 3 Classes Destroyed 9 | 2 6 1 Worker 4 | . 4 . Builder 2 | . 2 . Tunneler 5 | 2 3 . Recycler 2 | 1 1 . Operator 1 | . 1 . Watcher 1 | . 1 . Swarmer 6 | . 6 . Grunt 9 | . 9 . Subdweller 3 | . . 3 Best Kill Streak 4 | 3 4 2 Combat Bots Only 3 | . 3 2 Max Kills in Single Turn 2 | 2 1 1 Gunslinging . | . . . Exploded . | . . . Melee . | . . . Uniques/NPCs Destroyed . | . . . Combat | -11 -10 -10 -------- Run | Yrd Mat Sub Hostile Shots Fired 130 | . 88 42 Missed 22 | . 13 9 Damage Taken 1459 | . 780 679 Core 263 | . 121 142 Absorbed by Shields . | . . . Redirected to Shielding 32 | . 4 28 Core Remaining (%) 100 | 100 . . Volleys Fired 135 | 5 101 29 Largest 2 | 2 2 2 Hottest 105 | 90 105 105 Shots Fired 253 | 10 191 52 Gun 237 | 10 180 47 Cannon . | . . . Launcher 5 | . . 5 Special 11 | . 11 . Kinetic 49 | . 23 26 Thermal 199 | 10 168 21 Explosive 5 | . . 5 Electromagnetic . | . . . Robot Hit Streak 23 | 8 12 23 Robot Miss Streak 4 | . 4 1 Penetration Max . | . . . Secondary Targets . | . . . Shots Hit Robots 142 | 8 108 26 Core Hits 50 | 4 39 7 Critical Kills . | . . . Critical Parts Destroyed . | . . . Critical Strikes 3 | 1 2 . Burn 3 | 1 2 . Melee Attacks . | . . . Impact . | . . . Slashing . | . . . Piercing . | . . . Sneak Attacks . | . . . Combat Hostiles . | . . . Follow-up Attacks . | . . . Damage Inflicted 1772 | 106 1304 362 Guns 1759 | 106 1291 362 Cannons . | . . . Explosions . | . . . Melee . | . . . Ramming 13 | . 13 . Kinetic 297 | . 136 161 Thermal 1462 | 106 1155 201 Explosive . | . . . Electromagnetic . | . . . Impact . | . . . Slashing . | . . . Piercing . | . . . Highest Corruption . | . . . Average Corruption . | . . . Corruption Purged . | . . . Corruption Blocked . | . . . Overload Shots . | . . . Overflow Damage . | . . . Projectiles . | . . . Explosions . | . . . Melee . | . . . Knockbacks . | . . . Impact . | . . . Kinetic . | . . . Secondary . | . . . Self-Inflicted Damage 6 | . 6 . Shots . | . . . Rammed 2 | . 2 . Targets Rammed 2 | . 2 . Kicked . | . . . Crushed . | . . . Highest Temperature 470 | 150 470 . Average Temperature 97 | 78 98 . Received Heat Transfer 303 | . 261 42 Effects 6 | . 6 . Shutdowns 2 | . 2 . Matter Decay 1 | . 1 . Short Circuit 1 | . 1 . Damage (major) 2 | . 2 . Siege Activations . | . . . Robots Corrupted . | . . . Combat Hostiles . | . . . Parts Fried . | . . . Impact Corruptions . | . . . Robots Melted 1 | . 1 . Combat Hostiles 1 | . 1 . Parts Melted 4 | . 4 . Heat Transferred 3685 | 359 2866 460 Parts Sabotaged . | . . . Parts Stolen . | . . . Parts Stripped . | . . . Power Chain Reactions . | . . . Alert | -11 -10 -10 ------- Run | Yrd Mat Sub Peak Influence 275 | 15 275 . Initial 9 | . 9 . Average 145 | 4 158 . Maximum Alert Level 1 | . 1 . Low Security (%) 72 | 100 70 . Level 1 27 | . 29 . Level 2 . | . . . Level 3 . | . . . Level 4 . | . . . Level 5 . | . . . High Security . | . . . Max Security . | . . . Squads Dispatched 3 | . 3 . Investigation 2 | . 2 . Extermination . | . . . Reinforcement 1 | . 1 . Assault . | . . . Garrison . | . . . Intercept . | . . . Searches Triggered . | . . . Construction Impeded . | . . . Haulers Reinforced . | . . . Active Scanning Responses . | . . . Cargo Convoy Interrupts . | . . . Stealth | -11 -10 -10 --------- Run | Yrd Mat Sub Distress Signals 6 | . 6 . Communications Jammed . | . . . Distress Signals . | . . . Times Spotted 41 | . 36 5 Peak Tracking Total 4 | . 4 2 Tactical Retreats 3 | . 3 . Traps | -11 -10 -10 ------- Run | Yrd Mat Sub Traps Triggered 1 | . 1 . Indirectly . | . . . Trap Hack Attempts . | . . . Triggered . | . . . Disarmed . | . . . Reprogrammed . | . . . Reused . | . . . Traps Extracted . | . . . Installed . | . . . Triggered . | . . . Most Traps Carried 1 | . . 1 Machines | -11 -10 -10 ---------- Run | Yrd Mat Sub Machines Disabled 1 | . 1 . Max in Single Turn 1 | . 1 . Machines Repaired . | . . . Machines Dismantled . | . . . Machines Sabotaged . | . . . Overloaded Fab Kills . | . . . Hacking | -11 -10 -10 --------- Run | Yrd Mat Sub Machines Accessed 8 | . 8 . Terminals 7 | . 7 . Fabricators . | . . . Repair Stations . | . . . Recycling Units 1 | . 1 . Scanalyzers . | . . . Garrison Access . | . . . Total Hacks 22 | . 22 . Successful 14 | . 14 . Failed 8 | . 8 . Catastrophic 1 | . 1 . Database Lockouts . | . . . Manual 14 | . 14 . Terminals 18 | . 18 . Fabricators . | . . . Repair Stations . | . . . Recycling Units 4 | . 4 . Scanalyzers . | . . . Garrison Access . | . . . Terminal Hacks 8 | . 8 . Prototype ID Bank 1 | . 1 . Terminal Index 1 | . 1 . Locate Traps 1 | . 1 . Registered Components 1 | . 1 . Registered Prototypes 1 | . 1 . Zone Layout 3 | . 3 . Fabricator Hacks . | . . . Repair Station Hacks . | . . . Recycling Unit Hacks 3 | . 3 . Report Inventory 1 | . 1 . Retrieve Components 2 | . 2 . Scanalyzer . | . . . Garrison Access Hacks . | . . . Unauthorized Hacks 3 | . 3 . Terminals 3 | . 3 . Botnet 3 | . 3 . Fabricators . | . . . Repair Stations . | . . . Recycling Units . | . . . Scanalyzers . | . . . Garrison Access . | . . . Data Cores Recovered . | . . . Used . | . . . Hacking Detections 6 | . 6 . Full Trace Events 2 | . 2 . Feedback Events . | . . . Feedback Blocked . | . . . Robot Schematics Acquired . | . . . Robots Built . | . . . Authchips . | . . . Time . | . . . Total Robot Build Rating . | . . . Part Schematics Acquired . | . . . Parts Built . | . . . Authchips . | . . . Time . | . . . Total Part Build Rating . | . . . Parts Repaired . | . . . Time . | . . . Parts Recycled . | . . . Recycled Matter . | . . . Retrieved Matter . | . . . Retrieved Components 2 | . 2 . Parts Scanalyzed . | . . . Part Schematics Acquired . | . . . Parts Damaged . | . . . Bothacking | -11 -10 -10 ------------ Run | Yrd Mat Sub Used RIF Installer . | . . . Robots Hacked . | . . . Non-combat . | . . . Combat . | . . . Robot Hacks Applied . | . . . Relay Couplers Released . | . . . Fabnet Peak Effective % . | . . . Robots Rewired . | . . . Allies Hacked . | . . . Hacks Repelled . | . . . Allies | -11 -10 -10 -------- Run | Yrd Mat Sub Total Allies . | . . . Largest Group . | . . . Highest-Rated Group . | . . . Highest-Rated Ally . | . . . Total Orders . | . . . Ally Attacks . | . . . Total Damage . | . . . Kills . | . . . Allies Corrupted . | . . . Allies Melted . | . . . Intel | -11 -10 -10 ------- Run | Yrd Mat Sub Robot Analysis Total . | . . . Derelict Logs Recovered 1 | . . 1 Drone Launches . | . . . Drone Recoveries . | . . . Exploration | -11 -10 -10 ------------- Run | Yrd Mat Sub Turns Passed 2501 | 128 1492 881 Spaces Moved 1334 | 63 698 573 Core 4 | 4 . . Treads 269 | 59 210 . Legs . | . . . Wheels 1061 | . 488 573 Hover . | . . . Flight . | . . . Fastest Speed 50 | 50 140 129 Average Speed 140 | 153 146 131 Slowest Speed 320 | 160 320 200 Overloaded Moves . | . . . Propulsion Burnouts . | . . . Robots Hopped . | . . . Cave-ins Triggered . | . . . Exploration Rate (%) 44 | 3 91 40 Regions Visited 2 Branch Regions 1 Pre-discovered Areas 1 | . . 1 Known Exits Taken . | . . . Unknown Exits Taken 2 | 1 1 . Scrap Searched 3 | . . 3 Spaces Dug . | . . . Terrain Destroyed 9 | . . 9 Melee . | . . . Projectile . | . . . AOE 9 | . . 9 Terrain Rammed . | . . . Walls Destroyed . | . . . Machines Disabled . | . . . Actions | -11 -10 -10 --------- Run | Yrd Mat Sub Total 1674 | 81 953 640 Wait 120 | . 114 6 Move 1332 | 62 697 573 Hop . | . . . Pick Up 31 | 6 15 10 Fast Attach 9 | 7 2 . Attach 10 | . 3 7 Detach 1 | . 1 . Swap 28 | 1 12 15 Drop 6 | . 6 . Fire 135 | 5 101 29 Melee . | . . . Ram 1 | . 1 . Kick . | . . . Crush 1 | . 1 . Escape Stasis . | . . . Rewire . | . . . Trap . | . . . Miscellaneous . | . . . Route ------- -11/Scrapyard -10/Materials (discovered 5 exits: [*Mat x3] / [*Min] / [*Sub]) -10/Subcaves (discovered 2 exits: [*Mat x2]) History --------- Turn | Location | Event 5 | -11/Scrapyard | Discovered new exit (range 15) 129 | -11/Scrapyard | Entered Materials 309 | -10/Materials | Build established: Mutant 406 | -10/Materials | Discovered new exit (range 13) 582 | -10/Materials | Discovered new exit (range 15) 1031 | -10/Materials | Build established: Scavenger-Mutant 1185 | -10/Materials | Discovered new exit (range 11) 1376 | -10/Materials | Discovered new exit (range 7) 1611 | -10/Materials | Discovered new exit (range 2) 1621 | -10/Materials | Entered Subcaves 1745 | -10/Subcaves | Core integrity fell below 50% 1798 | -10/Subcaves | Core integrity fell below 20% 1839 | -10/Subcaves | Lost 6 parts (1p3n2w) 1992 | -10/Subcaves | Shifting Twisted Machinery released Mak. Leg 1995 | -10/Subcaves | Shifting Twisted Machinery released Battle Rifle 2077 | -10/Subcaves | Build established: Mutant 2178 | -10/Subcaves | A swath of the cavern ceiling suddenly collapsed 2272 | -10/Subcaves | Discovered new exit (range 10) 2476 | -10/Subcaves | Discovered new exit (range 5) 2502 | -10/Subcaves | Destroyed by E7-KF9(R) with Subdweller Laser Last Messages --------------- 02124_ Acquired 27 matter. 02124_ Searching scrap... 02124_ Found Sub. Monowheel. 02124_ Found Sub. Power Source. 02124_ Found 67 Matter. 02127_ Acquired Sub. Power Source. 02131_ Subatomizers dissect the Sub. Laser. 02135_ Acquired Sub. Laser. 02138_ Acquired Sub. Monowheel. 02141_ Acquired Sub. Power Source. 02144_ Subatomizers dissect the Sub. Power Source. 02144_ Acquired Shrapnel Trap. 02178_ 11 Matter crushed. A swath of the cavern ceiling suddenly collapses. 02247_ The unstable cave ceiling collapses. 02272_ EXIT=FOUND 02371_ Acquired 6 matter. 02422_ Acquired Barrage Gun. 02460_ Acquired 10 matter. 02476_ EXIT=FOUND Map ----- +----------------------------------------------------+ | | | ???????????????????????????????????????????????? | | ???????????????????????????????????????????????? | | ???????????????????????????????????????????????? | | ???????????????????????????????????????????????? | | ???????????????????????????????????????????????? | | ???????????????????????????????????????????????? | | ???????????????????????????????????????????????? | | ???????????????????????????????????????????????? | | ???????????????????????????????????????????????? | | ???????????????????????????????????????????????? | | ???????????????????????????????????????????????? | | ???????????????????????????????????????????????? | | ???????????????????????????????????????????????? | | #####????????????????#######???????????????????? | | #######????????????##########??????????????????? | | # ####???????????##### ###??????????????????? | | ##?????????##### ##??????????????????? | | ##????????##### ##??????????????????? | | # ###?????###### " ###??????????????????? | | ## ###????###### "" ####?????????????????? | | ## ####??#### ##"" ### < ####????????????????? | | ## ####?### ## "### ###????????????????? | | # ###### ## "" " "##????????????????? | | ## ##### """ ####????????????????? | | ##### ##### @"######??????????????? | | ##### # ###" ""#######?????????????? | | #### ##### " """ ###?????????????? | | ## % ######## "" ##?????????????? | | ### ####?###R "" ##?????????????? | | ### ####% ###???### R" #######?????????????? | | ##### #### ###???## " """ #####?????????????? | | ############ ????### #"""##????????????????? | | ##?########## ????### # " ##????????????????? | | #?????????### ????## ##""##"????????????????? | | ???????????#####" ???## """""????????????????? | | ???????????######" ??" ??????????????????????? | | ???????????????### ??????????????????????? | | ??????????????????##### ??????????????????????? | | ??????????????????###### ??????????????????????? | | ?????????????????????### ??????????????????????? | | ???????????????????????? ??????????????????????? | | ???????????????????????????????????????????????? | | ???????????????????????????????????????????????? | | ???????????????????????????????????????????????? | | ???????????????????????????????????????????????? | | ???????????????????????????????????????????????? | | ???????????????????????????????????????????????? | | ???????????????????????????????????????????????? | | ???????????????????????????????????????????????? | +----------------------------------------------------+ Best States ------------- Heat Dissipation 25 Energy Generation 10 Energy Capacity 250 Matter Stores 300 Matter Capacity 300 Sight Range 16 Terrain Scan Range 16 Terrain Scan Density 10 Armor Coverage 150 Core Shielding 20 Evasion (%) 40 Recoil Reduction 2 Item Schematics ----------------- None Robot Schematics ------------------ None Fabricated ------------ Nothing Alien Tech Used ----------------- None Achievements -------------- None Challenges ------------ None Game ------ Seed ShadeDisruptionReplica Manual? 0 Play Time 00:13:37 Cumulative 120.7 hours Start 2024.09.06 @ 01:50:14 End 2024.09.06 @ 02:00:39 Sessions 1 Manual Loads 0 Difficulty Rogue Special Mode None Game No. 144 Rogue 144 Adventurer 0 Explorer 0 Win Type - Total 2 Types 2/0/0/0/0/0/0/0/0 Lore% 56 Gallery% 64 Achievement% 48 Wizard Run 0 Options --------- Layout 0 ASCII 0 Keyboard 1 Movement Numpad Keybinds 0 Fullscreen 2 Font 18/SmallcapsGlow Map View 76x50 Zoom Use 0% Tactical HUD 1 Map Filters NONE Filters NONE Steam 1 RUN: c578629b-a0fb-4feb-8ab2-53d212d08305